[Event "Championnat d'Europe Rapide"]
[Date "2024.12.07"]
[White "Saric, Ante"]
[Black "Brunner, Nicolas"]
[WhiteElo "2482"]
[BlackElo "2413"]
[Round "4.25"]
[Result "1-0"]
[TimeControl "900+10"]

1. Nf3 {[%clk 00:15:19]} d5 {[%emt 00:00:02] [%clk 00:15:19]} 2. e3 {[%clk
00:15:28]} Nf6 {[%emt 00:00:05] [%clk 00:15:24]} 3. c4 {[%emt 00:00:01] [%clk
00:15:36]} e6 {[%emt 00:00:04] [%clk 00:15:32]} 4. b3 {[%clk 00:15:45]} b6
{[%emt 00:00:02] [%clk 00:15:40]} 5. Bb2 {[%emt 00:00:14] [%clk 00:15:41]} Bd6
{[%emt 00:00:27] [%clk 00:15:22]} 6. cxd5 {[%emt 00:00:23] [%clk 00:15:29]} exd5
{[%clk 00:15:31]} 7. Nc3 {[%emt 00:00:05] [%clk 00:15:33]} a6 {[%emt 00:00:59]
[%clk 00:14:42]} 8. g3 {[%emt 00:00:05] [%clk 00:15:39]} O-O {[%emt 00:00:16]
[%clk 00:14:36]} 9. Bg2 {[%emt 00:00:01] [%clk 00:15:48]} Bb7 {[%emt 00:00:13]
[%clk 00:14:33]} 10. O-O {[%emt 00:00:02] [%clk 00:15:55]} Re8 {[%emt 00:00:10]
[%clk 00:14:34]} 11. Rc1 {[%emt 00:00:02] [%clk 00:16:03]} Nbd7 {[%emt 00:00:24]
[%clk 00:14:19]} 12. d3 {[%emt 00:00:10] [%clk 00:16:04]} c5 {[%emt 00:00:19]
[%clk 00:14:09]} 13. d4 {[%emt 00:00:07] [%clk 00:16:07]} Bf8 {[%emt 00:02:19]
[%clk 00:12:01]} 14. dxc5 {[%emt 00:01:35] [%clk 00:14:42]} bxc5 {[%emt
00:00:57] [%clk 00:11:14]} 15. Na4 {[%emt 00:00:28] [%clk 00:14:24]} Rc8 {[%emt
00:00:13] [%clk 00:11:11]} 16. Rc2 {[%emt 00:00:16] [%clk 00:14:18]} Ne4 {[%emt
00:01:16] [%clk 00:10:04]} 17. Nd2 {[%emt 00:00:09] [%clk 00:14:20]} Nd6 {[%emt
00:00:07] [%clk 00:10:06]} 18. Nb1 {[%emt 00:01:13] [%clk 00:13:17]} Ne4 {[%emt
00:00:49] [%clk 00:09:27]} 19. Nbc3 {[%emt 00:00:02] [%clk 00:13:26]} Ndf6
{[%emt 00:00:17] [%clk 00:09:20]} 20. Nxe4 {[%emt 00:00:08] [%clk 00:13:28]}
Nxe4 {[%emt 00:00:31] [%clk 00:08:59]} 21. Nc3 {[%emt 00:04:48] [%clk 00:08:49]}
Nf6 {[%emt 00:01:14] [%clk 00:07:55]} 22. Rd2 {[%emt 00:00:15] [%clk 00:08:44]}
Qa5 {[%emt 00:00:05] [%clk 00:08:01]} 23. a3 {[%emt 00:01:33] [%clk 00:07:21]}
Ne4 {[%emt 00:00:29] [%clk 00:07:42]} 24. Nxe4 {[%emt 00:00:22]} dxe4 {[%clk
00:07:51]} 25. Qc2 {[%emt 00:00:13] [%clk 00:07:07]} c4 {[%emt 00:00:48] [%clk
00:07:12]} 26. b4 {[%emt 00:01:27] [%clk 00:05:51]} Qc7 {[%emt 00:01:41] [%clk
00:05:40]} 27. Rc1 {[%emt 00:00:07] [%clk 00:05:54]} a5 {[%emt 00:00:38] [%clk
00:05:13]} 28. Bh3 {[%emt 00:01:21] [%clk 00:04:43]} Rb8 {[%emt 00:00:22] [%clk
00:05:01]} 29. b5 {[%emt 00:02:06] [%clk 00:02:47]} Bc8 {[%emt 00:00:35] [%clk
00:04:36]} 30. Bxc8 {[%emt 00:00:02] [%clk 00:02:55]} Rexc8 {[%emt 00:01:25]
[%clk 00:03:20]} 31. a4 {[%clk 00:03:04]} Bb4 {[%emt 00:00:12] [%clk 00:03:18]}
32. Bc3 {[%emt 00:00:02] [%clk 00:03:13]} f5 {[%emt 00:01:15] [%clk 00:02:12]}
33. Rcd1 {[%emt 00:00:09] [%clk 00:03:15]} Rb7 {[%emt 00:00:25] [%clk 00:01:57]}
34. Qb2 {[%emt 00:00:30] [%clk 00:02:55]} Qe7 {[%emt 00:00:20] [%clk 00:01:47]}
35. Rd5 {[%emt 00:00:25] [%clk 00:02:40]} g6 {[%emt 00:00:51] [%clk 00:01:05]}
36. h4 {[%clk 00:02:49]} h5 {[%emt 00:00:09] [%clk 00:01:06]} 37. Kg2 {[%emt
00:00:32] [%clk 00:02:28]} Kh7 {[%emt 00:00:15] [%clk 00:01:01]} 38. R1d4 {[%emt
00:00:37] [%clk 00:02:01]} Kh6 {[%emt 00:00:11] [%clk 00:01:00]} 39. Qd2 {[%emt
00:00:22] [%clk 00:01:49]} Bxc3 {[%emt 00:00:10] [%clk 00:01:00]} 40. Qxc3
{[%emt 00:00:01] [%clk 00:01:58]} Qb4 {[%clk 00:01:10]} 41. Qa1 {[%emt 00:00:30]
[%clk 00:01:38]} Qb3 {[%emt 00:00:01] [%clk 00:01:18]} 42. Rd8 {[%emt 00:00:11]
[%clk 00:01:38]} Rxd8 {[%emt 00:00:38] [%clk 00:00:50]} 43. Rxd8 {[%emt
00:00:03] [%clk 00:01:46]} c3 {[%emt 00:00:01] [%clk 00:00:58]} 44. Rc8 {[%emt
00:00:37] [%clk 00:01:19]} Qb2 {[%emt 00:00:49] [%clk 00:00:19]} 45. Qe1 {[%emt
00:00:01] [%clk 00:01:27]} c2 {[%emt 00:00:08] [%clk 00:00:21]} 46. Qd2 {[%emt
00:00:15] [%clk 00:01:21]} 1-0

[Site "Europe Echecs"]

[Event "Championnat d'Europe Rapide"]
[Date "2024.12.07"]
[White "Pantsulaia, Levan"]
[Black "Gatineau, Yovann"]
[WhiteElo "2522"]
[BlackElo "2363"]
[Round "4.26"]
[Result "1/2-1/2"]
[TimeControl "900+10"]

1. Nf3 {[%emt 00:00:02] [%clk 00:15:18]} c5 {[%emt 00:03:21] [%clk 00:12:00]} 2.
c4 {[%emt 00:00:04] [%clk 00:15:24]} Nf6 {[%emt 00:00:03] [%clk 00:12:07]} 3. g3
{[%emt 00:00:05] [%clk 00:15:30]} d5 {[%emt 00:00:01] [%clk 00:12:15]} 4. cxd5
{[%emt 00:00:09] [%clk 00:15:31]} Nxd5 {[%emt 00:00:02] [%clk 00:12:23]} 5. Bg2
{[%clk 00:15:39]} Nc6 {[%emt 00:00:02] [%clk 00:12:32]} 6. Nc3 {[%emt 00:00:05]
[%clk 00:15:45]} Nc7 {[%emt 00:00:01] [%clk 00:12:40]} 7. O-O {[%emt 00:00:02]
[%clk 00:15:53]} e5 {[%emt 00:00:02] [%clk 00:12:49]} 8. a3 {[%emt 00:00:02]
[%clk 00:16:01]} Rb8 {[%emt 00:00:02] [%clk 00:12:56]} 9. d3 {[%emt 00:00:44]
[%clk 00:15:27]} Be7 {[%emt 00:00:10] [%clk 00:12:56]} 10. Nd2 {[%emt 00:00:31]
[%clk 00:15:06]} Bd7 {[%emt 00:00:24] [%clk 00:12:42]} 11. Nc4 {[%emt 00:00:08]
[%clk 00:15:08]} f6 {[%emt 00:00:22] [%clk 00:12:30]} 12. f4 {[%emt 00:00:07]
[%clk 00:15:11]} b5 {[%emt 00:00:21] [%clk 00:12:20]} 13. Ne3 {[%emt 00:00:01]
[%clk 00:15:20]} O-O {[%emt 00:00:39] [%clk 00:11:50]} 14. Ned5 {[%emt 00:00:08]
[%clk 00:15:22]} Nxd5 {[%emt 00:00:21] [%clk 00:11:39]} 15. Nxd5 {[%emt
00:00:02] [%clk 00:15:30]} Bd6 {[%emt 00:00:56] [%clk 00:10:53]} 16. a4 {[%emt
00:02:08] [%clk 00:13:32]} b4 {[%emt 00:01:31] [%clk 00:09:33]} 17. f5 {[%emt
00:00:57] [%clk 00:12:45]} Kh8 {[%emt 00:00:19] [%clk 00:09:24]} 18. b3 {[%emt
00:00:21] [%clk 00:12:33]} Na5 {[%emt 00:02:31] [%clk 00:07:03]} 19. Ra2 {[%emt
00:01:09] [%clk 00:11:34]} Rc8 {[%emt 00:00:35] [%clk 00:06:38]} 20. g4 {[%emt
00:00:53] [%clk 00:10:50]} Be8 {[%emt 00:00:25] [%clk 00:06:24]} 21. Ne3 {[%emt
00:00:07] [%clk 00:10:53]} Bf7 {[%emt 00:00:28] [%clk 00:06:06]} 22. Nc4 {[%emt
00:00:11] [%clk 00:10:52]} Nxc4 {[%emt 00:00:49] [%clk 00:05:27]} 23. dxc4
{[%emt 00:00:01] [%clk 00:11:01]} Qe7 {[%emt 00:00:22] [%clk 00:05:15]} 24. Be4
{[%emt 00:01:57] [%clk 00:09:14]} Rcd8 {[%emt 00:00:03] [%clk 00:05:23]} 25. Rd2
{[%emt 00:01:11] [%clk 00:08:12]} Bc7 {[%emt 00:00:20] [%clk 00:05:13]} 26. Qc2
{[%emt 00:00:02] [%clk 00:08:20]} Rxd2 {[%emt 00:00:23] [%clk 00:05:01]} 27.
Bxd2 {[%emt 00:00:02] [%clk 00:08:27]} Rd8 {[%emt 00:00:39] [%clk 00:04:32]} 28.
Be3 {[%emt 00:00:03] [%clk 00:08:34]} h6 {[%emt 00:01:56] [%clk 00:02:47]} 29.
h4 {[%emt 00:00:26] [%clk 00:08:18]} Kg8 {[%emt 00:00:14] [%clk 00:02:42]} 30.
Kf2 {[%emt 00:00:11] [%clk 00:08:16]} Rd4 {[%emt 00:01:00] [%clk 00:01:54]} 31.
Rg1 {[%emt 00:00:03] [%clk 00:08:22]} Kf8 {[%emt 00:00:11] [%clk 00:01:53]} 32.
Rg2 {[%emt 00:01:06] [%clk 00:07:27]} Qd6 {[%emt 00:00:08] [%clk 00:01:54]} 33.
Bxd4 {[%emt 00:00:38] [%clk 00:06:59]} exd4 {[%emt 00:00:10] [%clk 00:01:54]}
34. Qd2 {[%emt 00:00:02] [%clk 00:07:08]} Qe5 {[%emt 00:00:25] [%clk 00:01:38]}
35. Bf3 {[%emt 00:01:26] [%clk 00:05:51]} a5 {[%emt 00:00:15] [%clk 00:01:34]}
36. g5 {[%emt 00:00:50] [%clk 00:05:11]} hxg5 {[%emt 00:00:19] [%clk 00:01:26]}
37. hxg5 {[%clk 00:05:19]} Qxf5 {[%emt 00:00:09] [%clk 00:01:27]} 38. gxf6
{[%emt 00:00:01] [%clk 00:05:28]} Bf4 {[%emt 00:00:32] [%clk 00:01:06]} 39.
fxg7+ {[%emt 00:00:02] [%clk 00:05:35]} Kg8 {[%emt 00:00:07] [%clk 00:01:09]}
40. Qd3 {[%emt 00:02:48] [%clk 00:02:57]} Be3+ {[%emt 00:00:03] [%clk 00:01:17]}
41. Ke1 {[%emt 00:00:01] [%clk 00:03:06]} Qh3 {[%emt 00:00:10] [%clk 00:01:16]}
42. Rg4 {[%emt 00:00:30] [%clk 00:02:46]} Qh2 {[%emt 00:01:01] [%clk 00:00:25]}
43. Kd1 {[%emt 00:00:01] [%clk 00:02:55]} Qf2 {[%emt 00:00:15] [%clk 00:00:21]}
44. Kc2 {[%emt 00:00:07] [%clk 00:02:58]} Qe1 {[%emt 00:00:13] [%clk 00:00:18]}
45. Qd1 {[%emt 00:00:01] [%clk 00:03:06]} d3+ {[%emt 00:00:13] [%clk 00:00:16]}
46. exd3 {[%emt 00:00:05] [%clk 00:03:11]} Qc3+ {[%emt 00:00:02] [%clk
00:00:24]} 47. Kb1 {[%clk 00:03:20]} Bd4 {[%emt 00:00:13] [%clk 00:00:21]} 48.
Rxd4 {[%emt 00:00:02] [%clk 00:03:28]} Qxd4 {[%emt 00:00:03] [%clk 00:00:28]}
49. Be4 {[%emt 00:01:44] [%clk 00:01:54]} Kxg7 {[%emt 00:00:02] [%clk 00:00:36]}
50. Qd2 {[%emt 00:00:11] [%clk 00:01:53]} Kf6 {[%emt 00:00:22] [%clk 00:00:24]}
51. Kc2 {[%emt 00:00:30] [%clk 00:01:33]} Ke7 {[%emt 00:00:07] [%clk 00:00:27]}
52. Qg5+ {[%emt 00:00:15] [%clk 00:01:27]} Kf8 {[%emt 00:00:04] [%clk 00:00:33]}
53. Kd1 {[%emt 00:00:14] [%clk 00:01:23]} Qf2 {[%emt 00:00:14] [%clk 00:00:30]}
54. Qd2 {[%emt 00:00:35] [%clk 00:00:58]} Bh5+ {[%emt 00:00:14] [%clk 00:00:26]}
55. Kc2 {[%emt 00:00:05] [%clk 00:01:03]} Qxd2+ {[%emt 00:00:22] [%clk
00:00:14]} 56. Kxd2 {[%clk 00:01:12]} Ke7 {[%emt 00:00:01] [%clk 00:00:24]} 57.
Bg2 {[%emt 00:01:08] [%clk 00:00:13]} Kd6 {[%emt 00:00:03] [%clk 00:00:31]} 58.
Bf1 {[%emt 00:00:08] [%clk 00:00:15]} Ke5 {[%emt 00:00:02] [%clk 00:00:39]} 59.
Be2 {[%emt 00:00:02] [%clk 00:00:23]} Bg6 {[%emt 00:00:10] [%clk 00:00:39]} 60.
Ke3 {[%clk 00:00:32]} Bf5 {[%emt 00:00:02] [%clk 00:00:47]} 61. Bh5 {[%emt
00:00:08] [%clk 00:00:34]} Bh7 {[%emt 00:00:04] [%clk 00:00:53]} 62. Bf3 {[%emt
00:00:03] [%clk 00:00:40]} Bg6 {[%emt 00:00:02] [%clk 00:01:01]} 63. Be4 {[%emt
00:00:02] [%clk 00:00:48]} Bh5 {[%emt 00:00:03] [%clk 00:01:09]} 64. Kd2 {[%emt
00:00:11] [%clk 00:00:47]} Kd4 {[%emt 00:00:03] [%clk 00:01:16]} 1/2-1/2

[Site "Europe Echecs"]

[Event "Championnat d'Europe Rapide"]
[Date "2024.12.07"]
[White "Kadric, Denis"]
[Black "Nevednichy, Vladislav"]
[WhiteElo "2544"]
[BlackElo "2451"]
[Round "4.27"]
[Result "1-0"]
[TimeControl "900+10"]

1. e4 {[%emt 00:00:02] [%clk 00:15:18]} e6 {[%emt 00:00:04] [%clk 00:15:17]} 2.
d4 {[%emt 00:00:20] [%clk 00:15:07]} d5 {[%emt 00:00:03] [%clk 00:15:25]} 3. e5
{[%emt 00:00:01] [%clk 00:15:15]} c5 {[%emt 00:00:04] [%clk 00:15:32]} 4. c3
{[%clk 00:15:24]} Nc6 {[%emt 00:00:02] [%clk 00:15:40]} 5. Nf3 {[%clk 00:15:33]}
Qb6 {[%emt 00:00:03] [%clk 00:15:46]} 6. Na3 {[%emt 00:00:52] [%clk 00:14:52]}
cxd4 {[%emt 00:00:09] [%clk 00:15:47]} 7. cxd4 {[%clk 00:15:01]} Bb4+ {[%emt
00:00:34] [%clk 00:15:23]} 8. Bd2 {[%emt 00:00:01] [%clk 00:15:09]} Nge7 {[%emt
00:02:33] [%clk 00:13:00]} 9. Nc2 {[%emt 00:00:10] [%clk 00:15:09]} Bxd2+ {[%emt
00:00:51] [%clk 00:12:18]} 10. Qxd2 {[%emt 00:00:01] [%clk 00:15:18]} Qxb2
{[%emt 00:00:21] [%clk 00:12:07]} 11. Bd3 {[%emt 00:00:02] [%clk 00:15:26]} Qb6
{[%emt 00:00:08] [%clk 00:12:09]} 12. O-O {[%emt 00:00:02] [%clk 00:15:34]} Qd8
{[%emt 00:00:57] [%clk 00:11:22]} 13. Rab1 {[%emt 00:00:17] [%clk 00:15:28]} h6
{[%emt 00:00:42] [%clk 00:10:50]} 14. Ne3 {[%emt 00:02:51] [%clk 00:12:47]} b6
{[%emt 00:01:26] [%clk 00:09:34]} 15. Rfc1 {[%emt 00:00:36] [%clk 00:12:21]} Bd7
{[%emt 00:00:11] [%clk 00:09:33]} 16. Rc3 {[%emt 00:00:38] [%clk 00:11:54]} Na5
{[%emt 00:00:22] [%clk 00:09:20]} 17. Ba6 {[%emt 00:00:43] [%clk 00:11:22]} O-O
{[%emt 00:01:18] [%clk 00:08:12]} 18. Ng4 {[%emt 00:00:13] [%clk 00:11:19]} Nf5
{[%emt 00:00:14] [%clk 00:08:07]} 19. Bd3 {[%emt 00:00:04] [%clk 00:11:26]} Re8
{[%emt 00:03:31] [%clk 00:04:46]} 20. Bxf5 {[%emt 00:04:18] [%clk 00:07:17]}
exf5 {[%clk 00:04:53]} 21. Nf6+ gxf6 {[%clk 00:02:55]} 22. Qxh6 {[%emt 00:00:02]
[%clk 00:07:35]} Re6 {[%emt 00:00:01] [%clk 00:03:04]} 23. Nh4 {[%emt 00:00:23]
[%clk 00:07:21]} f4 {[%emt 00:00:08] [%clk 00:03:06]} 24. Nf5 {[%emt 00:00:44]
[%clk 00:06:47]} Qf8 {[%emt 00:00:07] [%clk 00:03:09]} 25. Qh4 {[%clk 00:06:55]}
Rxe5 {[%emt 00:02:20] [%clk 00:00:59]} 26. Rh3 {[%emt 00:00:02] [%clk 00:07:03]}
Qg7 {[%emt 00:00:21] [%clk 00:00:48]} 27. Nxg7 {[%emt 00:00:02] [%clk 00:07:11]}
Bxh3 {[%emt 00:00:02] [%clk 00:00:56]} 28. dxe5 {[%emt 00:00:04] [%clk
00:07:18]} 1-0

[Site "Europe Echecs"]

[Event "Championnat d'Europe Rapide"]
[Date "2024.12.07"]
[White "Veljanoski, Andrej"]
[Black "Cvitan, Ognjen"]
[WhiteElo "2304"]
[BlackElo "2413"]
[Round "4.28"]
[Result "0-1"]
[TimeControl "900+10"]

1. e4 {[%emt 00:01:25] [%clk 00:13:54]} c5 {[%emt 00:00:35] [%clk 00:14:46]} 2.
Nf3 {[%emt 00:00:04] [%clk 00:13:51]} d6 {[%emt 00:00:10] [%clk 00:14:54]} 3. d4
{[%emt 00:00:01] [%clk 00:14:00]} cxd4 {[%emt 00:00:01] [%clk 00:15:03]} 4. Nxd4
{[%clk 00:14:09]} Nf6 {[%emt 00:00:04] [%clk 00:15:09]} 5. Nc3 {[%emt 00:00:02]
[%clk 00:14:18]} a6 {[%clk 00:15:18]} 6. Be3 {[%emt 00:00:26] [%clk 00:14:02]}
e5 {[%emt 00:00:02] [%clk 00:15:26]} 7. Nb3 {[%emt 00:00:06] [%clk 00:14:05]}
Be7 {[%emt 00:00:02] [%clk 00:15:34]} 8. f3 {[%emt 00:00:05] [%clk 00:14:11]}
Be6 {[%emt 00:00:04] [%clk 00:15:40]} 9. Qd2 {[%emt 00:00:01] [%clk 00:14:19]}
O-O {[%emt 00:00:05] [%clk 00:15:46]} 10. O-O-O {[%emt 00:00:11] [%clk
00:14:18]} Nbd7 {[%emt 00:00:02] [%clk 00:15:54]} 11. g4 {[%emt 00:00:22] [%clk
00:14:06]} b5 {[%emt 00:00:03] [%clk 00:16:01]} 12. g5 {[%emt 00:01:04] [%clk
00:13:11]} Nh5 {[%emt 00:00:02] [%clk 00:16:09]} 13. Rg1 {[%emt 00:00:50] [%clk
00:12:31]} Nb6 {[%emt 00:00:13] [%clk 00:16:06]} 14. Nd5 {[%emt 00:02:14] [%clk
00:10:28]} Bxd5 {[%emt 00:00:44] [%clk 00:15:33]} 15. exd5 {[%emt 00:00:02]
[%clk 00:10:36]} Rc8 {[%emt 00:00:08] [%clk 00:15:34]} 16. Na5 {[%emt 00:00:12]
[%clk 00:10:34]} Nxd5 {[%emt 00:00:14] [%clk 00:15:30]} 17. Qxd5 {[%emt
00:00:43] [%clk 00:10:01]} Qxa5 {[%emt 00:00:02] [%clk 00:15:38]} 18. Rg4 {[%emt
00:01:32] [%clk 00:08:38]} g6 {[%emt 00:01:08] [%clk 00:14:40]} 19. Kb1 {[%emt
00:00:20] [%clk 00:08:29]} Nf4 {[%emt 00:02:44] [%clk 00:12:06]} 20. Bxf4 {[%emt
00:00:45] [%clk 00:07:55]} exf4 {[%emt 00:00:01] [%clk 00:12:15]} 21. h4 {[%emt
00:00:15] [%clk 00:07:50]} Rc5 {[%emt 00:01:55] [%clk 00:10:29]} 22. Qe4 {[%emt
00:00:35] [%clk 00:07:25]} Re5 {[%emt 00:00:08] [%clk 00:10:32]} 23. Qxf4 {[%emt
00:00:02] [%clk 00:07:34]} Re8 {[%emt 00:01:28] [%clk 00:09:13]} 24. Bd3 {[%emt
00:00:19] [%clk 00:07:25]} Bf8 {[%emt 00:00:13] [%clk 00:09:10]} 25. Rgg1 {[%emt
00:01:41] [%clk 00:05:54]} Bg7 {[%emt 00:01:14] [%clk 00:08:06]} 26. a3 {[%emt
00:00:31] [%clk 00:05:33]} Qb6 {[%emt 00:00:57] [%clk 00:07:19]} 27. h5 {[%emt
00:00:21] [%clk 00:05:23]} a5 {[%emt 00:00:42] [%clk 00:06:48]} 28. h6 {[%emt
00:00:26] [%clk 00:05:06]} Bf8 {[%emt 00:00:43] [%clk 00:06:14]} 29. Be4 {[%emt
00:00:02] [%clk 00:05:14]} d5 {[%emt 00:00:06] [%clk 00:06:19]} 30. Bd3 {[%emt
00:01:22] [%clk 00:04:02]} b4 {[%emt 00:00:18] [%clk 00:06:11]} 31. a4 {[%emt
00:00:27] [%clk 00:03:45]} b3 {[%emt 00:00:22] [%clk 00:05:59]} 32. cxb3 {[%emt
00:00:33] [%clk 00:03:22]} Qxb3 {[%emt 00:00:02] [%clk 00:06:06]} 33. Bb5 {[%emt
00:00:14] [%clk 00:03:17]} R8e6 {[%emt 00:00:31] [%clk 00:05:45]} 34. Qd4 {[%emt
00:00:12] [%clk 00:03:16]} Qxf3 {[%emt 00:00:24] [%clk 00:05:31]} 35. Qa7 {[%emt
00:01:28] [%clk 00:01:58]} Qe4+ {[%emt 00:01:20] [%clk 00:04:22]} 36. Ka1 {[%emt
00:00:01] [%clk 00:02:07]} Qb4 {[%emt 00:00:14] [%clk 00:04:17]} 37. Qa8 {[%emt
00:01:25] [%clk 00:00:52]} Rf5 {[%emt 00:02:16] [%clk 00:02:11]} 38. Rg2 {[%emt
00:00:43] [%clk 00:00:19]} d4 {[%emt 00:00:48] [%clk 00:01:33]} 39. Rc2 {[%emt
00:00:15] [%clk 00:00:14]} Rxg5 {[%emt 00:00:38] [%clk 00:01:05]} 40. Kb1 {[%emt
00:00:08] [%clk 00:00:17]} Re1 {[%emt 00:00:23] [%clk 00:00:52]} 41. Rxe1 {[%emt
00:00:08] [%clk 00:00:19]} Qxe1+ {[%clk 00:01:01]} 42. Rc1 {[%emt 00:00:18]
[%clk 00:00:12]} Qb4 {[%emt 00:00:12] [%clk 00:00:59]} 43. Rc4 {[%emt 00:00:08]
[%clk 00:00:14]} Qb3 {[%emt 00:00:12] [%clk 00:00:57]} 44. Rc1 {[%emt 00:00:12]
[%clk 00:00:12]} d3 {[%emt 00:00:18] [%clk 00:00:50]} 45. Bc4 {[%emt 00:00:04]
[%clk 00:00:17]} Qxa4 {[%emt 00:00:16] [%clk 00:00:44]} 46. Qe4 {[%emt 00:00:14]
[%clk 00:00:13]} Qd7 {[%emt 00:00:28] [%clk 00:00:25]} 47. Rf1 {[%emt 00:00:10]
[%clk 00:00:13]} d2 {[%emt 00:00:16] [%clk 00:00:20]} 48. Kc2 {[%emt 00:00:08]
[%clk 00:00:15]} Rc5 {[%emt 00:00:17] [%clk 00:00:13]} 49. b3 {[%emt 00:00:07]
[%clk 00:00:18]} Bxh6 {[%emt 00:00:01] [%clk 00:00:21]} 50. Kd1 {[%emt 00:00:04]
[%clk 00:00:24]} Rxc4 {[%emt 00:00:04] [%clk 00:00:28]} 51. Qxc4 {[%emt
00:00:02] [%clk 00:00:32]} Bg5 {[%emt 00:00:06] [%clk 00:00:32]} 52. Qc5 {[%emt
00:00:15] [%clk 00:00:27]} Qd3 {[%emt 00:00:14] [%clk 00:00:28]} 0-1

[Site "Europe Echecs"]

[Event "Championnat d'Europe Rapide"]
[Date "2024.12.07"]
[White "Boyer, Mahel"]
[Black "Djurovic, Peko"]
[WhiteElo "2526"]
[BlackElo "2253"]
[Round "4.29"]
[Result "1-0"]
[TimeControl "900+10"]

1. e4 {[%emt 00:03:13] [%clk 00:12:06]} c5 {[%emt 00:00:06] [%clk 00:15:15]} 2.
Nf3 {[%emt 00:00:02] [%clk 00:12:13]} Nc6 {[%emt 00:00:05] [%clk 00:15:21]} 3.
Bb5 {[%emt 00:00:03] [%clk 00:12:19]} e6 {[%emt 00:01:15] [%clk 00:14:16]} 4. c3
{[%emt 00:00:22] [%clk 00:12:08]} d5 {[%emt 00:02:01] [%clk 00:12:26]} 5. d3
{[%emt 00:00:16] [%clk 00:12:02]} Nge7 {[%emt 00:00:23] [%clk 00:12:13]} 6. O-O
{[%emt 00:00:19] [%clk 00:11:53]} a6 {[%emt 00:00:18] [%clk 00:12:05]} 7. Ba4
{[%emt 00:00:03] [%clk 00:11:59]} b5 {[%emt 00:00:04] [%clk 00:12:12]} 8. Bc2
{[%emt 00:00:03] [%clk 00:12:05]} Ng6 {[%emt 00:00:09] [%clk 00:12:14]} 9. d4
{[%emt 00:00:45] [%clk 00:11:30]} cxd4 {[%emt 00:00:44] [%clk 00:11:40]} 10.
exd5 {[%emt 00:00:04] [%clk 00:11:37]} Qxd5 {[%emt 00:00:13] [%clk 00:11:36]}
11. cxd4 {[%emt 00:00:02] [%clk 00:11:44]} Bb7 {[%emt 00:00:18] [%clk 00:11:28]}
12. Nc3 {[%emt 00:00:08] [%clk 00:11:46]} Qh5 {[%emt 00:00:15] [%clk 00:11:24]}
13. d5 {[%emt 00:00:54] [%clk 00:11:02]} Rd8 {[%emt 00:01:06] [%clk 00:10:28]}
14. Qe2 {[%emt 00:01:34] [%clk 00:09:38]} Nb4 {[%emt 00:00:04] [%clk 00:10:34]}
15. dxe6 {[%emt 00:00:08] [%clk 00:09:39]} Nxc2 {[%emt 00:00:05] [%clk
00:10:40]} 16. exf7+ {[%emt 00:00:03] [%clk 00:09:46]} Kxf7 {[%emt 00:00:02]
[%clk 00:10:48]} 17. Ng5+ {[%emt 00:00:03] [%clk 00:09:53]} Qxg5 {[%emt
00:01:15] [%clk 00:09:43]} 18. Bxg5 {[%emt 00:00:03] [%clk 00:09:59]} Nd4 {[%emt
00:00:02] [%clk 00:09:52]} 19. Qh5 {[%emt 00:00:08] [%clk 00:10:01]} Rd7 {[%emt
00:00:22] [%clk 00:09:40]} 20. Rad1 {[%emt 00:00:18] [%clk 00:09:53]} Bc5 {[%emt
00:02:41] [%clk 00:07:10]} 21. Be3 {[%emt 00:00:07] [%clk 00:09:55]} Bb6 {[%emt
00:00:03] [%clk 00:07:18]} 22. Bxd4 {[%emt 00:00:04] [%clk 00:10:01]} Bxd4
{[%emt 00:00:03] [%clk 00:07:26]} 23. Qf5+ {[%emt 00:00:02] [%clk 00:10:09]} 1-0

[Site "Europe Echecs"]